[Event "*** Titled Tuesday Blitz"]
[Site "Chess.com"]
[Date "2020.04.28"]
[Round "6"]
[White "Spring199"]
[Black "Karina_Ivanova"]
[Result "1-0"]
[WhiteElo "2385"]
[BlackElo "2202"]
[TimeControl "180+1"]
[EndTime "11:06:49 PDT"]
[Termination "Spring199 won by resignation"]

1. d4 {[%clk 0:03:00.9]} 1... Nf6 {[%clk 0:02:59.3]} 2. c4 {[%clk 0:03:01]} 2...
e6 {[%clk 0:02:56.3]} 3. Nc3 {[%clk 0:02:59.8]} 3... Bb4 {[%clk 0:02:54.4]} 4.
e3 {[%clk 0:02:59.5]} 4... c5 {[%clk 0:02:54]} 5. Ne2 {[%clk 0:02:58.1]} 5...
cxd4 {[%clk 0:02:53.7]} 6. exd4 {[%clk 0:02:57.8]} 6... d5 {[%clk 0:02:53.6]} 7.
a3 {[%clk 0:02:57.7]} 7... Bxc3+ {[%clk 0:02:53.3]} 8. Nxc3 {[%clk 0:02:58.6]}
8... dxc4 {[%clk 0:02:52.8]} 9. Bxc4 {[%clk 0:02:57.8]} 9... O-O {[%clk
0:02:52.3]} 10. O-O {[%clk 0:02:56.5]} 10... Nbd7 {[%clk 0:02:50]} 11. b4 {[%clk
0:02:54.6]} 11... a6 {[%clk 0:02:46.4]} 12. Bb2 {[%clk 0:02:53.7]} 12... b5
{[%clk 0:02:46.3]} 13. Bb3 {[%clk 0:02:42.4]} 13... Bb7 {[%clk 0:02:45.9]} 14.
Re1 {[%clk 0:02:33.3]} 14... Nb6 {[%clk 0:02:44.7]} 15. Qd3 {[%clk 0:02:29.5]}
15... Nbd5 {[%clk 0:02:37.9]} 16. g3 {[%clk 0:02:19.7]} 16... Rc8 {[%clk
0:02:31.9]} 17. Rad1 {[%clk 0:02:18.1]} 17... Qc7 {[%clk 0:02:24.3]} 18. Rc1
{[%clk 0:02:10.8]} 18... Qb6 {[%clk 0:02:16]} 19. Nxd5 {[%clk 0:02:04]} 19...
Bxd5 {[%clk 0:02:14.8]} 20. Rc5 {[%clk 0:01:57.4]} 20... Qb7 {[%clk 0:01:41]}
21. Rec1 {[%clk 0:01:48.1]} 21... Bh1 {[%clk 0:01:36.1]} 22. f3 {[%clk
0:01:44.7]} 22... Rxc5 {[%clk 0:01:32]} 23. dxc5 {[%clk 0:01:37.8]} 23... Bxf3
{[%clk 0:01:21.2]} 24. Rf1 {[%clk 0:01:23.4]} 24... Bh1 {[%clk 0:01:07.8]} 25.
Qe2 {[%clk 0:01:02.5]} 25... Ng4 {[%clk 0:00:48.9]} 26. h3 {[%clk 0:00:49.1]}
26... Ne3 {[%clk 0:00:43.8]} 27. Rf2 {[%clk 0:00:44.7]} 27... Nf5 {[%clk
0:00:36.3]} 28. Qe5 {[%clk 0:00:39.1]} 28... Bd5 {[%clk 0:00:12.6]} 29. Rxf5
{[%clk 0:00:37.1]} 29... f6 {[%clk 0:00:10.6]} 30. Bxd5 {[%clk 0:00:33.9]} 30...
exd5 {[%clk 0:00:05.4]} 31. Qxd5+ {[%clk 0:00:31.7]} 1-0

[Event "*** Titled Tuesday Blitz"]
[Site "Chess.com"]
[Date "2020.04.28"]
[Round "6"]
[White "APOKALIPSA13"]
[Black "relaxx87"]
[Result "0-1"]
[WhiteElo "2357"]
[BlackElo "2694"]
[TimeControl "180+1"]
[EndTime "11:06:52 PDT"]
[Termination "relaxx87 won by resignation"]

1. d4 {[%clk 0:03:00.9]} 1... d5 {[%clk 0:02:46]} 2. Nc3 {[%clk 0:02:58.7]} 2...
Nf6 {[%clk 0:02:45.5]} 3. Bg5 {[%clk 0:02:57.4]} 3... Nbd7 {[%clk 0:02:45.1]} 4.
Nf3 {[%clk 0:02:55.8]} 4... c6 {[%clk 0:02:34.2]} 5. e3 {[%clk 0:02:54.7]} 5...
h6 {[%clk 0:02:30.8]} 6. Bf4 {[%clk 0:02:53.5]} 6... Nh5 {[%clk 0:02:29.3]} 7.
Bg3 {[%clk 0:02:49.1]} 7... Nxg3 {[%clk 0:02:27.4]} 8. hxg3 {[%clk 0:02:50]}
8... Qc7 {[%clk 0:02:25.4]} 9. Qd2 {[%clk 0:02:44.1]} 9... e5 {[%clk 0:02:24.8]}
10. dxe5 {[%clk 0:02:43]} 10... Nxe5 {[%clk 0:02:25]} 11. O-O-O {[%clk
0:02:42.9]} 11... Be7 {[%clk 0:02:20.7]} 12. Nxe5 {[%clk 0:02:41.2]} 12... Qxe5
{[%clk 0:02:20.3]} 13. f4 {[%clk 0:02:41.8]} 13... Qc7 {[%clk 0:02:14.5]} 14. e4
{[%clk 0:02:40.3]} 14... dxe4 {[%clk 0:02:15.4]} 15. Nxe4 {[%clk 0:02:39.6]}
15... Be6 {[%clk 0:02:14.5]} 16. Nd6+ {[%clk 0:02:32.5]} 16... Bxd6 {[%clk
0:02:12.8]} 17. Qxd6 {[%clk 0:02:33.4]} 17... Qxd6 {[%clk 0:02:12.7]} 18. Rxd6
{[%clk 0:02:33.9]} 18... Ke7 {[%clk 0:02:12.6]} 19. Rd2 {[%clk 0:02:31.7]} 19...
Rhd8 {[%clk 0:02:10.1]} 20. Rxd8 {[%clk 0:02:27.4]} 20... Rxd8 {[%clk 0:02:11]}
21. a3 {[%clk 0:02:24.7]} 21... Bd5 {[%clk 0:02:07.5]} 22. g4 {[%clk 0:02:16.6]}
22... Be4 {[%clk 0:02:03]} 23. Rh3 {[%clk 0:02:11.8]} 23... Kf6 {[%clk
0:01:56.5]} 24. Re3 {[%clk 0:02:10]} 24... Bd5 {[%clk 0:01:52.5]} 25. c4 {[%clk
0:02:01.6]} 25... Be6 {[%clk 0:01:49.3]} 26. Be2 {[%clk 0:01:55.2]} 26... Rd4
{[%clk 0:01:48.3]} 27. g3 {[%clk 0:01:41.1]} 27... Bxc4 {[%clk 0:01:47]} 28.
Bxc4 {[%clk 0:01:33.5]} 28... Rxc4+ {[%clk 0:01:47.9]} 29. Kd2 {[%clk
0:01:33.8]} 29... g5 {[%clk 0:01:42.8]} 30. Kd3 {[%clk 0:01:27.3]} 30... Rc1
{[%clk 0:01:34]} 31. Rf3 {[%clk 0:01:24.5]} 31... Kg6 {[%clk 0:01:28.1]} 32. Kd2
{[%clk 0:01:13.7]} 32... Rg1 {[%clk 0:01:24]} 33. f5+ {[%clk 0:00:49.8]} 33...
Kf6 {[%clk 0:01:22.1]} 34. Rd3 {[%clk 0:00:50]} 34... Ke7 {[%clk 0:01:15.8]} 35.
Re3+ {[%clk 0:00:46.3]} 35... Kf6 {[%clk 0:01:13.7]} 36. Rd3 {[%clk 0:00:46.1]}
36... Rg2+ {[%clk 0:01:13.2]} 37. Kc3 {[%clk 0:00:44.2]} 37... Ke7 {[%clk
0:01:11.1]} 38. Re3+ {[%clk 0:00:44.2]} 38... Kd7 {[%clk 0:01:10.8]} 39. f6
{[%clk 0:00:43.2]} 39... Kd6 {[%clk 0:01:07.4]} 40. Kc4 {[%clk 0:00:40.1]} 40...
Rxb2 {[%clk 0:00:58.7]} 41. Kc3 {[%clk 0:00:41]} 41... Rf2 {[%clk 0:00:58]} 42.
Re7 {[%clk 0:00:33.5]} 42... Rxf6 {[%clk 0:00:48.2]} 43. Rxb7 {[%clk 0:00:32.8]}
43... Rf3+ {[%clk 0:00:47.6]} 44. Kb4 {[%clk 0:00:32.9]} 44... Rxg3 {[%clk
0:00:44.6]} 45. Rxf7 {[%clk 0:00:32.2]} 45... Rxg4+ {[%clk 0:00:43.7]} 46. Kc3
{[%clk 0:00:32.3]} 46... h5 {[%clk 0:00:41.9]} 47. Rxa7 {[%clk 0:00:31.3]} 47...
h4 {[%clk 0:00:41.1]} 48. a4 {[%clk 0:00:30.1]} 48... h3 {[%clk 0:00:40.6]} 49.
Rf7 {[%clk 0:00:26.6]} 49... h2 {[%clk 0:00:39.7]} 50. Rf6+ {[%clk 0:00:26.4]}
50... Kc7 {[%clk 0:00:38.4]} 0-1

[Event "*** Titled Tuesday Blitz"]
[Site "Chess.com"]
[Date "2020.04.28"]
[Round "6"]
[White "AnnaChessLook"]
[Black "DrVitman"]
[Result "1-0"]
[WhiteElo "2277"]
[BlackElo "2526"]
[TimeControl "180+1"]
[EndTime "11:06:52 PDT"]
[Termination "AnnaChessLook won by resignation"]

1. d4 {[%clk 0:03:00.9]} 1... Nf6 {[%clk 0:02:59.6]} 2. c4 {[%clk 0:03:00.9]}
2... g6 {[%clk 0:02:59.4]} 3. Nc3 {[%clk 0:03:00.8]} 3... d5 {[%clk 0:02:59.6]}
4. Nf3 {[%clk 0:03:00.8]} 4... Bg7 {[%clk 0:02:59.2]} 5. Bg5 {[%clk 0:03:01.2]}
5... dxc4 {[%clk 0:02:55.6]} 6. e4 {[%clk 0:02:58.4]} 6... O-O {[%clk
0:02:54.7]} 7. Bxc4 {[%clk 0:02:58.3]} 7... h6 {[%clk 0:02:54.2]} 8. Be3 {[%clk
0:02:55.1]} 8... c6 {[%clk 0:02:47.5]} 9. O-O {[%clk 0:02:55.4]} 9... Bg4 {[%clk
0:02:25.9]} 10. h3 {[%clk 0:02:54.6]} 10... Bxf3 {[%clk 0:02:25.6]} 11. Qxf3
{[%clk 0:02:54.6]} 11... Nfd7 {[%clk 0:02:19.9]} 12. Rad1 {[%clk 0:02:43.3]}
12... Nb6 {[%clk 0:02:18.2]} 13. Bb3 {[%clk 0:02:42.8]} 13... N8d7 {[%clk
0:02:13.7]} 14. Qg3 {[%clk 0:02:38.8]} 14... Kh7 {[%clk 0:01:46.6]} 15. e5
{[%clk 0:02:38.9]} 15... e6 {[%clk 0:01:40.5]} 16. Bc2 {[%clk 0:02:22.7]} 16...
Nc4 {[%clk 0:01:20.5]} 17. h4 {[%clk 0:01:46]} 17... h5 {[%clk 0:01:02.6]} 18.
Bg5 {[%clk 0:01:41.1]} 18... Qe8 {[%clk 0:00:56]} 19. b3 {[%clk 0:01:39.6]}
19... Ncb6 {[%clk 0:00:36.5]} 20. Qf3 {[%clk 0:01:38.3]} 20... Kh8 {[%clk
0:00:32.5]} 21. Ne4 {[%clk 0:01:17.4]} 21... c5 {[%clk 0:00:20.5]} 22. Nd6
{[%clk 0:01:16.3]} 22... Qb8 {[%clk 0:00:17]} 23. Nxf7+ {[%clk 0:01:04.2]} 23...
Rxf7 {[%clk 0:00:16.8]} 24. Qxf7 {[%clk 0:01:03.7]} 24... cxd4 {[%clk
0:00:15.3]} 25. Qxg6 {[%clk 0:01:01.4]} 25... Nf8 {[%clk 0:00:14.7]} 26. Qxh5+
{[%clk 0:01:01.1]} 26... Kg8 {[%clk 0:00:15]} 27. Rxd4 {[%clk 0:00:59.5]} 27...
Qc8 {[%clk 0:00:11.6]} 28. Bg6 {[%clk 0:00:54.8]} 28... Nxg6 {[%clk 0:00:05.2]}
29. Qxg6 {[%clk 0:00:55.7]} 29... Qf8 {[%clk 0:00:04]} 30. Bf6 {[%clk
0:00:54.4]} 30... Nd5 {[%clk 0:00:02]} 31. Bxg7 {[%clk 0:00:47.2]} 31... Qxg7
{[%clk 0:00:02.9]} 32. Qxe6+ {[%clk 0:00:48.1]} 32... Qf7 {[%clk 0:00:03.8]} 33.
Qxd5 {[%clk 0:00:48.2]} 33... Qxd5 {[%clk 0:00:03.9]} 34. Rxd5 {[%clk
0:00:49.1]} 34... Rf8 {[%clk 0:00:04.2]} 35. f4 {[%clk 0:00:49.4]} 35... Re8
{[%clk 0:00:05.1]} 36. g3 {[%clk 0:00:49.3]} 36... Kf8 {[%clk 0:00:06]} 37. Rfd1
{[%clk 0:00:49.6]} 37... Kg8 {[%clk 0:00:06.9]} 38. Rd8 {[%clk 0:00:49.6]} 38...
Kf7 {[%clk 0:00:07.8]} 39. R1d7+ {[%clk 0:00:48.5]} 39... Re7 {[%clk 0:00:07.5]}
40. Rxe7+ {[%clk 0:00:48.8]} 40... Kxe7 {[%clk 0:00:08.4]} 41. Rb8 {[%clk
0:00:49.6]} 41... Ke6 {[%clk 0:00:09.3]} 42. Rxb7 {[%clk 0:00:50.1]} 42... Kf5
{[%clk 0:00:10.2]} 43. Rxa7 {[%clk 0:00:51]} 43... Ke4 {[%clk 0:00:11.1]} 44. e6
{[%clk 0:00:51.2]} 44... Kd3 {[%clk 0:00:12]} 45. e7 {[%clk 0:00:52.1]} 45...
Kc2 {[%clk 0:00:12.9]} 46. e8=Q {[%clk 0:00:52.6]} 46... Kb1 {[%clk 0:00:13.8]}
47. Qe2 {[%clk 0:00:51.6]} 47... Ka1 {[%clk 0:00:14.7]} 48. Rd7 {[%clk
0:00:51.4]} 1-0

[Event "*** Titled Tuesday Blitz"]
[Site "Chess.com"]
[Date "2020.04.28"]
[Round "6"]
[White "sergoy"]
[Black "moro182"]
[Result "1-0"]
[WhiteElo "2866"]
[BlackElo "2698"]
[TimeControl "180+1"]
[EndTime "11:06:53 PDT"]
[Termination "sergoy won by resignation"]

1. d4 {[%clk 0:03:00.9]} 1... Nf6 {[%clk 0:02:55.6]} 2. c4 {[%clk 0:03:01]} 2...
e6 {[%clk 0:02:55.9]} 3. Nf3 {[%clk 0:03:00.8]} 3... d5 {[%clk 0:02:56.3]} 4.
Nc3 {[%clk 0:03:01]} 4... c6 {[%clk 0:02:56.1]} 5. Bg5 {[%clk 0:03:00.7]} 5...
Nbd7 {[%clk 0:02:56.2]} 6. cxd5 {[%clk 0:02:58.6]} 6... exd5 {[%clk 0:02:56.2]}
7. e3 {[%clk 0:02:59.1]} 7... Be7 {[%clk 0:02:54.5]} 8. Bd3 {[%clk 0:02:58.9]}
8... O-O {[%clk 0:02:51.6]} 9. O-O {[%clk 0:02:58.7]} 9... Re8 {[%clk
0:02:51.9]} 10. Rb1 {[%clk 0:02:56.9]} 10... a6 {[%clk 0:02:45.7]} 11. Qc2
{[%clk 0:02:54.7]} 11... g6 {[%clk 0:02:42.2]} 12. Ne5 {[%clk 0:02:52.4]} 12...
Nxe5 {[%clk 0:02:32.9]} 13. dxe5 {[%clk 0:02:53.3]} 13... Nd7 {[%clk 0:02:33.3]}
14. Bxe7 {[%clk 0:02:51.7]} 14... Qxe7 {[%clk 0:02:34.2]} 15. f4 {[%clk
0:02:52.6]} 15... Nc5 {[%clk 0:02:34.5]} 16. e4 {[%clk 0:02:46.4]} 16... Nxd3
{[%clk 0:02:25.4]} 17. Qxd3 {[%clk 0:02:46]} 17... dxe4 {[%clk 0:02:26.3]} 18.
Nxe4 {[%clk 0:02:40.4]} 18... Bf5 {[%clk 0:02:26.3]} 19. Qc2 {[%clk 0:02:40.5]}
19... Rad8 {[%clk 0:02:20.6]} 20. Rbd1 {[%clk 0:02:38.6]} 20... Rd5 {[%clk
0:02:16.6]} 21. h3 {[%clk 0:02:31.9]} 21... Red8 {[%clk 0:02:13]} 22. Rde1
{[%clk 0:02:18.8]} 22... Rd4 {[%clk 0:02:03.2]} 23. Rf2 {[%clk 0:02:09.7]} 23...
Rxe4 {[%clk 0:01:14.1]} 24. Rxe4 {[%clk 0:02:10.6]} 24... Qd7 {[%clk 0:01:12.3]}
25. Kh2 {[%clk 0:01:55.5]} 25... Bxe4 {[%clk 0:00:48.5]} 26. Qxe4 {[%clk
0:01:56.4]} 26... Qd4 {[%clk 0:00:49.2]} 27. Qe2 {[%clk 0:01:53.1]} 27... Qd5
{[%clk 0:00:48.7]} 28. Qe3 {[%clk 0:01:43.3]} 28... Qd4 {[%clk 0:00:34.6]} 29.
Qf3 {[%clk 0:01:40.9]} 29... Qd3 {[%clk 0:00:23.3]} 30. Qg4 {[%clk 0:01:41.2]}
30... Qe4 {[%clk 0:00:15.8]} 31. Re2 {[%clk 0:01:39.3]} 31... Qf5 {[%clk
0:00:15.9]} 32. Qxf5 {[%clk 0:01:19.7]} 32... gxf5 {[%clk 0:00:16.8]} 33. g4
{[%clk 0:01:20.4]} 33... fxg4 {[%clk 0:00:15.1]} 34. hxg4 {[%clk 0:01:21.3]}
34... Rd3 {[%clk 0:00:15.5]} 35. Kg2 {[%clk 0:01:21.7]} 35... Kg7 {[%clk
0:00:14.9]} 36. b3 {[%clk 0:01:11.9]} 36... c5 {[%clk 0:00:14.9]} 37. Kf2 {[%clk
0:01:10.4]} 37... Rc3 {[%clk 0:00:10.8]} 38. Rd2 {[%clk 0:01:04.6]} 38... b5
{[%clk 0:00:10.1]} 39. Rd7 {[%clk 0:01:02.3]} 39... Kf8 {[%clk 0:00:08.3]} 40.
f5 {[%clk 0:00:54]} 40... h6 {[%clk 0:00:06.5]} 41. f6 {[%clk 0:00:53.3]} 41...
Kg8 {[%clk 0:00:06.9]} 42. Rd8+ {[%clk 0:00:51.5]} 42... Kh7 {[%clk 0:00:07.4]}
43. e6 {[%clk 0:00:52.1]} 43... Rc2+ {[%clk 0:00:05.9]} 44. Kf3 {[%clk
0:00:52.4]} 44... Rc1 {[%clk 0:00:03.3]} 45. exf7 {[%clk 0:00:50.9]} 1-0

[Event "*** Titled Tuesday Blitz"]
[Site "Chess.com"]
[Date "2020.04.28"]
[Round "6"]
[White "mattcolins2025"]
[Black "Hasangatin_Ramil"]
[Result "0-1"]
[WhiteElo "2290"]
[BlackElo "2459"]
[TimeControl "180+1"]
[EndTime "11:06:53 PDT"]
[Termination "Hasangatin_Ramil won on time"]

1. d4 {[%clk 0:03:00.9]} 1... Nf6 {[%clk 0:02:58]} 2. c4 {[%clk 0:03:01.3]} 2...
e6 {[%clk 0:02:57.7]} 3. Nc3 {[%clk 0:03:01.9]} 3... c5 {[%clk 0:02:57.7]} 4. d5
{[%clk 0:03:02]} 4... exd5 {[%clk 0:02:58.6]} 5. cxd5 {[%clk 0:03:02]} 5... Bd6
{[%clk 0:02:59]} 6. Nf3 {[%clk 0:03:00.5]} 6... Bc7 {[%clk 0:02:58.5]} 7. Bg5
{[%clk 0:02:59]} 7... d6 {[%clk 0:02:59.4]} 8. e3 {[%clk 0:02:57.5]} 8... a6
{[%clk 0:02:59.6]} 9. a4 {[%clk 0:02:57.1]} 9... Nbd7 {[%clk 0:02:59.5]} 10. Be2
{[%clk 0:02:56.2]} 10... Nf8 {[%clk 0:02:55.7]} 11. O-O {[%clk 0:02:55.8]} 11...
h6 {[%clk 0:02:55.7]} 12. Bh4 {[%clk 0:02:55.7]} 12... Ng6 {[%clk 0:02:55.7]}
13. Bg3 {[%clk 0:02:55.7]} 13... Nh5 {[%clk 0:02:55.5]} 14. Nd2 {[%clk
0:02:53.3]} 14... Nxg3 {[%clk 0:02:55.2]} 15. hxg3 {[%clk 0:02:53.9]} 15... Rb8
{[%clk 0:02:53.2]} 16. a5 {[%clk 0:02:40.1]} 16... O-O {[%clk 0:02:51.5]} 17.
Nc4 {[%clk 0:02:39.3]} 17... Re8 {[%clk 0:02:49.3]} 18. Na4 {[%clk 0:02:30.2]}
18... Bd7 {[%clk 0:02:46.3]} 19. Nab6 {[%clk 0:02:29.3]} 19... Bb5 {[%clk
0:02:45.1]} 20. b3 {[%clk 0:02:21.5]} 20... Ne5 {[%clk 0:02:44]} 21. Nxe5 {[%clk
0:02:19.9]} 21... Rxe5 {[%clk 0:02:42.9]} 22. Nc4 {[%clk 0:01:53.2]} 22... Bxc4
{[%clk 0:02:40.6]} 23. bxc4 {[%clk 0:01:52.1]} 23... Bxa5 {[%clk 0:02:41.5]} 24.
Qa4 {[%clk 0:01:51.6]} 24... Bb4 {[%clk 0:02:38.3]} 25. Qb3 {[%clk 0:01:47]}
25... Qf6 {[%clk 0:02:26.3]} 26. f4 {[%clk 0:01:39.1]} 26... Re7 {[%clk
0:02:24.3]} 27. Bf3 {[%clk 0:01:38.6]} 27... Bc3 {[%clk 0:02:06.5]} 28. Rxa6
{[%clk 0:01:29.8]} 28... Rxe3 {[%clk 0:01:51]} 29. Qb6 {[%clk 0:01:28.5]} 29...
bxa6 {[%clk 0:01:43.8]} 30. Qxb8+ {[%clk 0:01:27.6]} 30... Kh7 {[%clk
0:01:44.2]} 31. Qb1+ {[%clk 0:01:13.6]} 31... g6 {[%clk 0:01:42.1]} 32. Qb6
{[%clk 0:01:07.7]} 32... a5 {[%clk 0:01:25.4]} 33. Qc7 {[%clk 0:00:57.8]} 33...
a4 {[%clk 0:01:20.4]} 34. f5 {[%clk 0:00:41.5]} 34... g5 {[%clk 0:01:12.5]} 35.
Qa7 {[%clk 0:00:29.7]} 35... a3 {[%clk 0:01:10.1]} 36. Qxa3 {[%clk 0:00:27.6]}
36... Bd4 {[%clk 0:01:09.4]} 37. Qxe3 {[%clk 0:00:15.9]} 37... Bxe3+ {[%clk
0:01:08.9]} 38. Kh2 {[%clk 0:00:16.3]} 38... Kg7 {[%clk 0:01:05]} 39. Bg4 {[%clk
0:00:12.9]} 39... Bd4 {[%clk 0:01:03.5]} 40. Re1 {[%clk 0:00:12.6]} 40... Be5
{[%clk 0:01:03.2]} 41. Bh3 {[%clk 0:00:11.5]} 41... h5 {[%clk 0:01:02.2]} 42.
Kh1 {[%clk 0:00:10.9]} 42... Bxg3 {[%clk 0:01:01]} 43. Rf1 {[%clk 0:00:09.7]}
43... g4 {[%clk 0:01:00.4]} 44. Rg1 {[%clk 0:00:09.5]} 44... Qh4 {[%clk
0:00:57.2]} 45. f6+ {[%clk 0:00:07.7]} 45... Qxf6 {[%clk 0:00:55.3]} 46. Rd1
{[%clk 0:00:02.5]} 46... Be5 {[%clk 0:00:54.8]} 47. Re1 {[%clk 0:00:02]} 47...
Qf4 {[%clk 0:00:54.2]} 0-1

[Event "*** Titled Tuesday Blitz"]
[Site "Chess.com"]
[Date "2020.04.28"]
[Round "6"]
[White "Zmeeed63"]
[Black "Galiev_Azat"]
[Result "0-1"]
[WhiteElo "2142"]
[BlackElo "2288"]
[TimeControl "180+1"]
[EndTime "11:06:53 PDT"]
[Termination "Galiev_Azat won by resignation"]

1. d4 {[%clk 0:03:00.9]} 1... Nf6 {[%clk 0:02:59.3]} 2. c4 {[%clk 0:02:59.3]}
2... e6 {[%clk 0:02:59.2]} 3. Nf3 {[%clk 0:02:55.3]} 3... b6 {[%clk 0:02:58.6]}
4. g3 {[%clk 0:02:53.9]} 4... Ba6 {[%clk 0:02:58.6]} 5. b3 {[%clk 0:02:52.5]}
5... Bb4+ {[%clk 0:02:56.3]} 6. Bd2 {[%clk 0:02:52.1]} 6... Be7 {[%clk
0:02:51.3]} 7. Bg2 {[%clk 0:02:51.2]} 7... d5 {[%clk 0:02:51.4]} 8. Ne5 {[%clk
0:02:49]} 8... Nfd7 {[%clk 0:02:47.1]} 9. Nxd7 {[%clk 0:02:41.6]} 9... Qxd7
{[%clk 0:02:38.4]} 10. O-O {[%clk 0:02:40.7]} 10... c6 {[%clk 0:02:36.8]} 11.
Qc2 {[%clk 0:02:38.1]} 11... O-O {[%clk 0:02:35.5]} 12. e4 {[%clk 0:02:30.1]}
12... dxc4 {[%clk 0:02:34.8]} 13. bxc4 {[%clk 0:02:23.9]} 13... Qxd4 {[%clk
0:02:34.2]} 14. Bc3 {[%clk 0:02:24.2]} 14... Qxc4 {[%clk 0:02:30.9]} 15. Nd2
{[%clk 0:02:24.5]} 15... Qd3 {[%clk 0:02:30]} 16. Qb2 {[%clk 0:02:22.8]} 16...
f6 {[%clk 0:02:23.9]} 17. e5 {[%clk 0:02:11.9]} 17... f5 {[%clk 0:02:19]} 18.
Rfd1 {[%clk 0:02:06.2]} 18... Qb5 {[%clk 0:02:17.6]} 19. Nb3 {[%clk 0:02:01.4]}
19... Bb7 {[%clk 0:01:55.5]} 20. Bf1 {[%clk 0:01:58.3]} 20... Qa4 {[%clk
0:01:53.2]} 21. Rd4 {[%clk 0:01:57.6]} 21... Qa3 {[%clk 0:01:49.4]} 22. Qd2
{[%clk 0:01:42.3]} 22... b5 {[%clk 0:01:37.3]} 23. Ba5 {[%clk 0:00:56.6]} 23...
c5 {[%clk 0:01:26.7]} 24. Rd7 {[%clk 0:00:30.6]} 24... Nxd7 {[%clk 0:01:20.4]}
25. Qxd7 {[%clk 0:00:31.5]} 25... c4 {[%clk 0:01:20]} 26. Nd4 {[%clk 0:00:17.4]}
26... Bd5 {[%clk 0:01:10.3]} 27. Be1 {[%clk 0:00:15.6]} 27... Rfd8 {[%clk
0:00:57.8]} 28. Qc7 {[%clk 0:00:14.8]} 28... Rac8 {[%clk 0:00:55]} 29. Qa5
{[%clk 0:00:10.2]} 29... Qxa5 {[%clk 0:00:51.2]} 30. Bxa5 {[%clk 0:00:11.1]}
30... Rd7 {[%clk 0:00:48.8]} 31. Nxb5 {[%clk 0:00:10.3]} 31... Rc5 {[%clk
0:00:45.9]} 32. a4 {[%clk 0:00:10.1]} 32... a6 {[%clk 0:00:46.1]} 33. Bb4 {[%clk
0:00:08.6]} 33... axb5 {[%clk 0:00:46.4]} 34. Bxc5 {[%clk 0:00:08.6]} 34... Bxc5
{[%clk 0:00:47.3]} 35. a5 {[%clk 0:00:09.5]} 35... Ba7 {[%clk 0:00:40.1]} 36.
Rb1 {[%clk 0:00:08.7]} 36... Bc6 {[%clk 0:00:35.6]} 37. Bg2 {[%clk 0:00:08]} 0-1

[Event "*** Titled Tuesday Blitz"]
[Site "Chess.com"]
[Date "2020.04.28"]
[Round "6"]
[White "Ceejay271"]
[Black "ZEN-22"]
[Result "0-1"]
[WhiteElo "2318"]
[BlackElo "2493"]
[TimeControl "180+1"]
[EndTime "11:06:54 PDT"]
[Termination "ZEN-22 won on time"]

1. c4 {[%clk 0:03:00.9]} 1... d5 {[%clk 0:02:58.2]} 2. cxd5 {[%clk 0:02:59.7]}
2... c6 {[%clk 0:02:58.3]} 3. dxc6 {[%clk 0:02:58.6]} 3... Nxc6 {[%clk
0:02:59.2]} 4. Nf3 {[%clk 0:02:54.1]} 4... e5 {[%clk 0:03:00.1]} 5. d3 {[%clk
0:02:49.7]} 5... Bc5 {[%clk 0:02:58.9]} 6. e3 {[%clk 0:02:48.4]} 6... Nf6 {[%clk
0:02:55.9]} 7. Nc3 {[%clk 0:02:46.4]} 7... O-O {[%clk 0:02:53.1]} 8. Be2 {[%clk
0:02:45.8]} 8... a6 {[%clk 0:02:52.6]} 9. O-O {[%clk 0:02:44.9]} 9... Ba7 {[%clk
0:02:52.3]} 10. a3 {[%clk 0:02:39.5]} 10... Qe7 {[%clk 0:02:51.5]} 11. e4 {[%clk
0:02:35.7]} 11... Bg4 {[%clk 0:02:48.1]} 12. Bg5 {[%clk 0:02:34.8]} 12... Qe6
{[%clk 0:02:47.2]} 13. h3 {[%clk 0:02:23.3]} 13... Bxf3 {[%clk 0:02:45.1]} 14.
Bxf3 {[%clk 0:02:22.8]} 14... Nd4 {[%clk 0:02:43.8]} 15. Bxf6 {[%clk 0:01:58.9]}
15... Qxf6 {[%clk 0:02:42.8]} 16. Nd5 {[%clk 0:01:58.9]} 16... Qd6 {[%clk
0:02:42.2]} 17. Rc1 {[%clk 0:01:53.5]} 17... Rac8 {[%clk 0:02:33.2]} 18. Rc3
{[%clk 0:01:28.8]} 18... g6 {[%clk 0:02:11.8]} 19. Qc1 {[%clk 0:01:14.8]} 19...
Rc6 {[%clk 0:02:08.4]} 20. Qg5 {[%clk 0:01:06.6]} 20... Kg7 {[%clk 0:02:06.8]}
21. Qe7 {[%clk 0:01:02.3]} 21... Bc5 {[%clk 0:01:47.9]} 22. Qxd6 {[%clk
0:01:00.7]} 22... Bxd6 {[%clk 0:01:47.5]} 23. Rfc1 {[%clk 0:00:59.5]} 23... Rd8
{[%clk 0:01:47]} 24. Bd1 {[%clk 0:00:55.7]} 24... Rdc8 {[%clk 0:01:43.9]} 25.
Rxc6 {[%clk 0:00:51.9]} 25... bxc6 {[%clk 0:01:43.2]} 26. Ne3 {[%clk 0:00:48.9]}
26... Kf6 {[%clk 0:01:31.4]} 27. Nc4 {[%clk 0:00:45]} 27... Bc7 {[%clk
0:01:30.8]} 28. Kf1 {[%clk 0:00:42]} 28... Ke7 {[%clk 0:01:30.1]} 29. Ke1 {[%clk
0:00:39.6]} 29... f5 {[%clk 0:01:29]} 30. exf5 {[%clk 0:00:29.6]} 30... gxf5
{[%clk 0:01:27.9]} 31. Ba4 {[%clk 0:00:22.6]} 31... Ke6 {[%clk 0:01:06.5]} 32.
g3 {[%clk 0:00:19.1]} 32... e4 {[%clk 0:00:52.4]} 33. dxe4 {[%clk 0:00:18.1]}
33... fxe4 {[%clk 0:00:52.3]} 34. Ne3 {[%clk 0:00:17.3]} 34... Bb6 {[%clk
0:00:28.4]} 35. b4 {[%clk 0:00:14.1]} 35... a5 {[%clk 0:00:27.8]} 36. Kf1 {[%clk
0:00:08.8]} 36... axb4 {[%clk 0:00:27.1]} 37. axb4 {[%clk 0:00:09.2]} 37... Kd7
{[%clk 0:00:25.9]} 38. Nd5 {[%clk 0:00:06.7]} 38... Bd8 {[%clk 0:00:24]} 0-1